[Event "WJCC U20 Girls 2019"]
[Site "New Delhi"]
[Date "2019.10.24"]
[Round "10.1"]
[White "Shuvalova, Polina"]
[Black "Berdnyk, Mariia"]
[Result "1-0"]
[ECO "B51"]
[WhiteElo "2412"]
[BlackElo "2349"]
[Annotator "NA"]
[PlyCount "131"]
[EventDate "2019.10.15"]
[EventType "swiss"]
[EventCountry "IND"]
[SourceTitle "playchess.com"]
[Source "ChessBase"]
[SourceQuality "1"]
[TimeControl "40/5400+30:1800+30"]

1. e4 {[%emt 0:00:00]} c5 {[%emt 0:00:00]} 2. Nf3 {[%emt 0:00:00]} d6 {[%emt 0:00:00]} 3. Bb5+ {[%emt 0:00:00]} Nd7 {[%emt 0:00:00]} 4. c3 {[%emt 0:00:00]} Ngf6 {[%emt 0:00:00]} 5. Qe2 {[%emt 0:00:01]} a6 {[%emt 0:00:00]} 6. Ba4 {[%emt 0:00:08]} b5 {[%emt 0:00:28]} 7. Bc2 {[%emt 0:00:06]} Bb7 {[%emt 0:00:02]} 8. O-O {[%emt 0:01:45]} g6 {[%emt 0:00:04]} 9. d4 {[%emt 0:00:10]} Bg7 {[%emt 0:00:06]} 10. Rd1 {[%emt 0:01:58]} O-O {[%emt 0:05:39]} 11. e5 {[%emt 0:03:28]} Bxf3 {[%emt 0:00:54]} 12. gxf3 {[%emt 0:07:12]} Nh5 {[%emt 0:02:16]} 13. f4 {[%emt 0:10:15]} e6 {[%emt 0:02:37]} 14. dxc5 $11 {[%emt 0:12:57]} d5 {[%emt 0:04:43]} 15. Qg4 {[%emt 0:04:38]} Nxc5 {[%emt 0:02:13]} 16. Be3 {[%emt 0:00:38]} Nd7 {[%emt 0:01:30]} 17. Nd2 {[%emt 0:01:05]} Qe7 {[%emt 0:11:34]} 18. Nf1 {[%emt 0:06:48]} f6 {[%emt 0:00:48]} 19. exf6 {[%emt 0:01:46]} Qxf6 {[%emt 0:06:32]} 20. Ng3 {[%emt 0:03:57]} Nxf4 {[%emt 0:00:36]} 21. Bxf4 {[%emt 0:04:09]} Qxf4 {[%emt 0:00:07]} 22. Qxe6+ {[%emt 0:03:05]} Kh8 {[%emt 0:00:16]} 23. Qe3 {[%emt 0:02:30]} Qf7 {[%emt 0:07:56]} 24. Bb3 {[%emt 0:03:20]} Rae8 {[%emt 0:01:14]} 25. Bxd5 {[%emt 0:01:30]} Rxe3 {[%emt 0:00:47]} 26. Bxf7 {[%emt 0:00:11]} Rxg3+ {[%emt 0:00:02]} 27. hxg3 {[%emt 0:07:35]} Rxf7 {[%emt 0:00:04]} 28. a4 {[%emt 0:00:05]} b4 {[%emt 0:15:09]} 29. cxb4 {[%emt 0:00:08]} Bxb2 {[%emt 0:00:08]} 30. Rab1 {[%emt 0:00:32]} Be5 {[%emt 0:00:13]} 31. Rbc1 {[%emt 0:02:00]} Kg7 {[%emt 0:04:47]} 32. Rc6 {[%emt 0:10:51]} Nb8 {[%emt 0:00:23]} 33. Re6 {[%emt 0:03:01]} Bc7 {[%emt 0:03:46]} 34. Kg2 {[%emt 0:03:55]} Kf8 {[%emt 0:00:55]} 35. b5 {[%emt 0:02:47]} axb5 {[%emt 0:00:18]} 36. axb5 {[%emt 0:00:04]} Nd7 {[%emt 0:00:21]} 37. Rc1 {[%emt 0:00:44]} Bb6 {[%emt 0:02:33]} 38. Rc8+ {[%emt 0:00:12]} Kg7 {[%emt 0:00:09]} 39. f4 {[%emt 0:00:11]} Rf6 {[%emt 0:02:27]} 40. Re7+ {[%emt 0:00:46]} Rf7 {[%emt 0:00:04]} 41. Rxf7+ {[%emt 0:31:15]} Kxf7 {[%emt 0:30:05]} 42. Rc6 {[%emt 0:00:00]} Be3 {[%emt 0:00:00]} 43. Kf3 {[%emt 0:00:00]} Bg1 {[%emt 0:00:00]} 44. g4 {[%emt 0:00:00]} Ke7 {[%emt 0:00:00]} 45. g5 {[%emt 0:00:00]} Nb6 {[%emt 0:00:00]} 46. Rc1 {[%emt 0:00:00]} Bd4 {[%emt 0:00:00]} 47. Rh1 {[%emt 0:00:00]} Ke6 {[%emt 0:02:06]} 48. Rxh7 {[%emt 0:00:00]} Nd5 {[%emt 0:00:21]} 49. Ke4 {[%emt 0:00:00]} Bg1 {[%emt 0:02:40]} 50. Rh1 {[%emt 0:00:00]} Ba7 {[%emt 0:04:37]} 51. Rh6 {[%emt 0:00:00]} Nc3+ {[%emt 0:00:21]} 52. Kf3 {[%emt 0:00:00]} Kf5 {[%emt 0:02:29]} 53. Rh7 {[%emt 0:00:00]} Nxb5 {[%emt 0:01:19]} 54. Rf7+ {[%emt 0:00:00]} Ke6 {[%emt 0:00:06]} 55. Rf6+ {[%emt 0:00:00]} Ke7 {[%emt 0:00:05]} 56. Rxg6 {[%emt 0:00:00]} Bd4 {[%emt 0:01:22]} 57. f5 {[%emt 0:00:42]} Nd6 {[%emt 0:00:54]} 58. Re6+ {[%emt 0:00:32]} Kd7 {[%emt 0:00:03]} 59. Kg4 {[%emt 0:00:06]} Bc3 {[%emt 0:01:02]} 60. Re2 {[%emt 0:01:02]} Ne8 {[%emt 0:02:07]} 61. Kh5 {[%emt 0:00:35]} Nc7 {[%emt 0:01:21]} 62. f6 {[%emt 0:02:23]} Nd5 {[%emt 0:00:47]} 63. f7 {[%emt 0:00:22]} Bb4 {[%emt 0:01:10]} 64. Kh6 {[%emt 0:01:38]} Bf8+ {[%emt 0:00:45]} 65. Kh7 {[%emt 0:00:04]} Nf4 {[%emt 0:00:37]} 66. Re8 {[%emt 0:00:56]} 1-0

[Event "WJCC U20 Girls 2019"]
[Site "New Delhi"]
[Date "2019.10.24"]
[Round "10.2"]
[White "Dordzhieva, Dinara"]
[Black "Alinasab, Mobina"]
[Result "1/2-1/2"]
[ECO "C11"]
[WhiteElo "2335"]
[BlackElo "2239"]
[Annotator "NA"]
[PlyCount "119"]
[EventDate "2019.10.15"]
[EventType "swiss"]
[EventCountry "IND"]
[SourceTitle "playchess.com"]
[Source "ChessBase"]
[SourceQuality "1"]
[TimeControl "40/5400+30:1800+30"]

1. e4 {[%emt 0:00:00]} e6 {[%emt 0:00:42]} 2. d4 {[%emt 0:00:00]} d5 {[%emt 0:00:03]} 3. Nc3 {[%emt 0:00:02]} Nf6 {[%emt 0:00:06]} 4. e5 {[%emt 0:00:04]} Nfd7 {[%emt 0:00:03]} 5. f4 {[%emt 0:00:20]} c5 {[%emt 0:00:24]} 6. Nf3 {[%emt 0:00:32]} Nc6 {[%emt 0:00:19]} 7. Be3 {[%emt 0:00:27]} a6 {[%emt 0:00:57]} 8. Be2 {[%emt 0:09:23]} b5 {[%emt 0:00:15]} 9. Qd2 {[%emt 0:04:02]} Qb6 {[%emt 0:00:52]} 10. O-O {[%emt 0:05:27]} cxd4 {[%emt 0:18:34] C11: French: Classical System: 4 e5 and 4 Bg5 dxe4} 11. Nxd4 {[%emt 0:00:32]} Bc5 {[%emt 0:03:23]} 12. Rad1 {[%emt 0:00:33]} O-O {[%emt 0:01:51]} (12... g6 13. a3 Bb7 14. Rf3 Nxd4 15. Bxd4 Bxd4+ 16. Qxd4 Rc8 17. Rh3 Ke7 18. Kf1 Qxd4 19. Rxd4 {½-½ (91) Kamsky,G (2700)-Akobian,V (2556) Philadelphia 2005}) 13. Bf3 {[%emt 0:04:40]} Nxd4 {[%emt 0:02:05]} 14. Bxd4 {[%emt 0:00:04]} Bxd4+ {[%emt 0:00:35]} 15. Qxd4 {[%emt 0:00:04]} Qxd4+ $146 {[%emt 0:00:17]} ({Predecessor:} 15... Bb7 16. Ne2 Rac8 17. c3 Rc4 18. Qxb6 Nxb6 {½-½ (86) Guerreiro,A (1962)-Pinto,R (2022) Sao Paulo 2014}) 16. Rxd4 {[%emt 0:00:04]} Rb8 {[%emt 0:00:10]} 17. Rdd1 {[%emt 0:05:06]} Nb6 {[%emt 0:00:53]} 18. b3 {[%emt 0:01:38]} b4 {[%emt 0:06:55]} 19. Ne2 {[%emt 0:01:44]} a5 {[%emt 0:00:06]} 20. Nd4 {[%emt 0:00:32]} Bd7 {[%emt 0:00:25]} 21. Rfe1 {[%emt 0:10:24]} Rfc8 {[%emt 0:00:42]} 22. Be2 $11 {[%emt 0:08:10]} Rc5 {[%emt 0:06:58]} 23. Bd3 {[%emt 0:03:28]} Nc8 {[%emt 0:02:59]} 24. Kf2 {[%emt 0:06:54]} Na7 {[%emt 0:05:36]} 25. Ra1 {[%emt 0:08:21]} Nc6 {[%emt 0:27:48]} 26. Nxc6 {[%emt 0:07:09]} Bxc6 {[%emt 0:00:07]} 27. a3 {[%emt 0:00:07]} g6 {[%emt 0:01:00]} 28. Ke3 {[%emt 0:02:58]} Bd7 {[%emt 0:04:36]} 29. axb4 {[%emt 0:07:45]} Rxb4 {[%emt 0:03:22]} 30. Ra3 {[%emt 0:01:19]} a4 {[%emt 0:02:33]} 31. bxa4 {[%emt 0:05:57]} Bxa4 {[%emt 0:01:31]} 32. c3 {[%emt 0:02:32]} Rxc3 {[%emt 0:00:20]} 33. Rxc3 {[%emt 0:01:31]} d4+ {[%emt 0:00:01]} 34. Kd2 {[%emt 0:00:04]} dxc3+ {[%emt 0:00:08]} 35. Kxc3 {[%emt 0:00:03]} Rxf4 {[%emt 0:00:19]} 36. Re4 {[%emt 0:01:41]} Rxe4 {[%emt 0:01:53]} 37. Bxe4 {[%emt 0:00:03]} f6 {[%emt 0:06:51]} 38. exf6 {[%emt 0:01:36]} Kf7 {[%emt 0:00:05]} 39. Kd4 {[%emt 0:00:03]} Kxf6 {[%emt 0:00:04]} 40. h4 {[%emt 0:00:07]} Bd1 {[%emt 0:00:51]} 41. g3 {[%emt 0:30:34]} Bg4 {[%emt 0:12:50]} 42. Bd3 {[%emt 0:00:00]} Bf5 {[%emt 0:06:10]} 43. Be2 {[%emt 0:00:00]} h6 {[%emt 0:01:34]} 44. Bd1 {[%emt 0:00:00]} Bb1 {[%emt 0:00:38]} 45. Bg4 {[%emt 0:00:00]} Ba2 {[%emt 0:01:00]} 46. Bh3 {[%emt 0:00:00]} Bd5 {[%emt 0:00:42]} 47. Bg4 {[%emt 0:00:00]} Bg2 {[%emt 0:00:54]} 48. Bd1 {[%emt 0:00:00]} Kf5 {[%emt 0:03:22]} 49. Bc2+ {[%emt 0:00:00]} Kg4 {[%emt 0:00:35]} 50. Bxg6 {[%emt 0:00:00]} Kxg3 {[%emt 0:00:03]} 51. Ke5 Bh3 {[%emt 0:01:59]} 52. h5 {[%emt 0:00:00]} Kh4 {[%emt 0:01:21]} 53. Bf7 {[%emt 0:00:00]} Bg4 {[%emt 0:01:50]} 54. Bxe6 {[%emt 0:00:00]} Kxh5 {[%emt 0:00:20]} 55. Bf7+ {[%emt 0:00:00]} Kg5 {[%emt 0:00:05]} 56. Be8 {[%emt 0:00:00]} Bc8 {[%emt 0:00:18]} 57. Ke4 {[%emt 0:00:00]} Bf5+ {[%emt 0:00:14]} 58. Ke3 {[%emt 0:00:00]} Bg6 {[%emt 0:00:13]} 59. Bxg6 {[%emt 0:00:00]} Kxg6 {[%emt 0:00:04]} 60. Ke4 1/2-1/2

[Event "WJCC U20 Girls 2019"]
[Site "New Delhi"]
[Date "2019.10.24"]
[Round "10.4"]
[White "Li, Yunshan"]
[Black "Tsolakidou, Stavroula"]
[Result "1/2-1/2"]
[ECO "E04"]
[WhiteElo "2289"]
[BlackElo "2431"]
[Annotator "NA"]
[PlyCount "114"]
[EventDate "2019.10.15"]
[EventType "swiss"]
[EventCountry "IND"]
[SourceTitle "playchess.com"]
[Source "ChessBase"]
[SourceQuality "1"]
[TimeControl "40/5400+30:1800+30"]

1. d4 {[%emt 0:00:00]} Nf6 {[%emt 0:00:00]} 2. c4 {[%emt 0:00:00]} e6 {[%emt 0:00:00]} 3. g3 {[%emt 0:00:00]} d5 {[%emt 0:02:09]} 4. Bg2 {[%emt 0:00:09]} dxc4 {[%emt 0:00:09]} 5. Nf3 {[%emt 0:00:24]} a6 {[%emt 0:00:07]} 6. O-O {[%emt 0:04:03]} Nc6 {[%emt 0:00:10]} 7. e3 {[%emt 0:00:45]} Rb8 {[%emt 0:00:21]} 8. Qe2 {[%emt 0:01:03] E04: Open Catalan: 5 Nf3} (8. Nfd2 e5 9. Bxc6+ bxc6 10. dxe5 Ng4 11. Nxc4 Be6 12. Qe2 h5 13. Rd1 Qc8 14. Qf3 Rb6 15. Nxb6 cxb6 16. h4 Nxe5 {½-½ (41) Grischuk,A (2759)-Ding,L (2811) Khanty-Mansiysk 2019}) 8... b5 {[%emt 0:00:30]} 9. b3 {[%emt 0:01:07]} cxb3 {[%emt 0:00:07]} 10. axb3 {[%emt 0:00:06]} Be7 {[%emt 0:00:23]} 11. Bb2 {[%emt 0:01:48]} O-O {[%emt 0:00:21]} 12. Rc1 {[%emt 0:01:49]} Rb6 {[%emt 0:00:16]} 13. Ne1 $146 {[%emt 0:13:28]} ({Predecessor:} 13. Nbd2 Bb7 14. Ne1 Nb4 15. Bxb7 Rxb7 {1-0 (59) Arun Prasad,S (2530)-Akshayraj,K (2386) Moscow 2012}) 13... Bb7 {[%emt 0:11:53]} 14. Nd3 {[%emt 0:01:41]} Qa8 {[%emt 0:00:06]} 15. Qf1 {[%emt 0:02:54]} Nb4 {[%emt 0:00:29]} 16. Nxb4 {[%emt 0:08:19]} Bxb4 {[%emt 0:00:06]} 17. Rxc7 {[%emt 0:11:14]} Bxg2 {[%emt 0:01:21]} 18. Qxg2 {[%emt 0:00:14]} Nd5 {[%emt 0:00:22]} 19. Rc1 {[%emt 0:02:33]} Rc8 {[%emt 0:01:19]} 20. Na3 {[%emt 0:12:53]} Rxc1+ {[%emt 0:03:55]} 21. Rxc1 {[%emt 0:00:20]} Rc6 {[%emt 0:00:18]} 22. Qf1 {[%emt 0:09:36]} f5 {[%emt 0:00:36]} 23. Rxc6 {[%emt 0:01:50]} Qxc6 {[%emt 0:00:06]} 24. Qc1 $15 {[%emt 0:02:14]} Qb7 {[%emt 0:26:08]} 25. Nc2 {[%emt 0:01:42]} Bd6 {[%emt 0:00:28]} 26. f3 {[%emt 0:06:42]} Nf6 {[%emt 0:03:31]} 27. Kf2 {[%emt 0:00:45]} a5 {[%emt 0:00:15]} 28. Ne1 {[%emt 0:02:37]} h6 {[%emt 0:06:35]} 29. Nd3 {[%emt 0:01:17]} Qd5 {[%emt 0:08:34]} 30. Qc2 {[%emt 0:00:34]} Kh7 {[%emt 0:00:44]} 31. Nc5 {[%emt 0:03:06]} Qc6 {[%emt 0:01:54]} 32. Qd3 {[%emt 0:03:39]} Be7 {[%emt 0:02:22]} 33. g4 {[%emt 0:05:45]} g6 {[%emt 0:01:07]} 34. gxf5 {[%emt 0:00:06]} exf5 {[%emt 0:00:45]} 35. e4 {[%emt 0:01:31]} fxe4 {[%emt 0:01:09]} 36. Nxe4 {[%emt 0:00:51]} Nd5 {[%emt 0:03:28]} 37. Nc3 {[%emt 0:00:09]} Nf4 {[%emt 0:03:06]} 38. Qe3 {[%emt 0:01:09]} Qc7 {[%emt 0:00:17]} 39. Kf1 {[%emt 0:00:26]} Bg5 {[%emt 0:02:58]} 40. Ne4 {[%emt 0:00:38]} Qd7 {[%emt 0:03:09]} 41. Nxg5+ {[%emt 0:02:59]} hxg5 {[%emt 0:03:43]} 42. Kg1 {[%emt 0:02:53]} Qf5 {[%emt 0:10:50]} 43. Qe4 {[%emt 0:03:15]} Nd5 {[%emt 0:04:30]} 44. Kf2 {[%emt 0:04:34]} a4 {[%emt 0:00:57]} 45. bxa4 {[%emt 0:00:42]} bxa4 {[%emt 0:00:04]} 46. Ba3 {[%emt 0:01:57]} Kg7 {[%emt 0:03:07]} 47. Qe8 {[%emt 0:11:26]} Qc2+ {[%emt 0:06:18]} 48. Kg3 {[%emt 0:00:25]} Qf5 {[%emt 0:01:07]} 49. Kf2 {[%emt 0:00:32]} Kh7 {[%emt 0:06:06]} 50. Qe4 {[%emt 0:01:36]} Qd7 {[%emt 0:00:25]} 51. Qe5 {[%emt 0:00:58]} Nf4 {[%emt 0:03:20]} 52. Qe4 {[%emt 0:04:06]} Qf7 {[%emt 0:02:06]} 53. d5 {[%emt 0:01:07]} Nxd5 {[%emt 0:02:36]} 54. Qxa4 {[%emt 0:00:09]} Nf4 {[%emt 0:00:08]} 55. Bd6 {[%emt 0:00:42]} Qf5 {[%emt 0:04:37]} 56. Qe4 {[%emt 0:00:39]} Ne6 {[%emt 0:00:53]} 57. Qxf5 {[%emt 0:00:17]} gxf5 {[%emt 0:00:04]} 1/2-1/2

[Event "WJCC U20 Girls 2019"]
[Site "New Delhi"]
[Date "2019.10.24"]
[Round "10.5"]
[White "Kiolbasa, Oliwia"]
[Black "Assaubayeva, Bibisara"]
[Result "0-1"]
[ECO "D10"]
[WhiteElo "2223"]
[BlackElo "2381"]
[Annotator "NA"]
[PlyCount "178"]
[EventDate "2019.10.15"]
[EventType "swiss"]
[EventCountry "IND"]
[SourceTitle "playchess.com"]
[Source "ChessBase"]
[SourceQuality "1"]
[TimeControl "40/5400+30:1800+30"]

1. d4 {[%emt 0:00:00]} d5 {[%emt 0:00:00]} 2. c4 {[%emt 0:00:00]} c6 {[%emt 0:00:00]} 3. cxd5 {[%emt 0:00:00]} cxd5 {[%emt 0:00:09]} 4. Bf4 {[%emt 0:00:06]} Nf6 {[%emt 0:02:44]} 5. e3 {[%emt 0:00:33]} e6 {[%emt 0:02:20]} 6. Nc3 {[%emt 0:00:38]} Nc6 {[%emt 0:02:31]} 7. Bd3 {[%emt 0:00:23]} Bd6 {[%emt 0:01:19]} 8. Bxd6 {[%emt 0:00:33]} Qxd6 {[%emt 0:00:02]} 9. f4 {[%emt 0:00:17]} Bd7 {[%emt 0:07:39]} 10. Nf3 {[%emt 0:02:58]} Nb4 {[%emt 0:06:53]} 11. O-O {[%emt 0:06:37]} Nxd3 {[%emt 0:00:33]} 12. Qxd3 {[%emt 0:00:04]} O-O {[%emt 0:05:33]} 13. Rac1 {[%emt 0:01:45]} Rfc8 {[%emt 0:03:44]} 14. Ne5 {[%emt 0:08:55]} Rc7 {[%emt 0:03:37]} 15. g4 $11 {[%emt 0:36:18]} Rac8 {[%emt 0:04:29]} 16. g5 {[%emt 0:01:59]} Ne4 {[%emt 0:04:32]} 17. Nxe4 {[%emt 0:00:14]} dxe4 {[%emt 0:00:02]} 18. Qd2 {[%emt 0:00:44]} Bb5 {[%emt 0:02:51]} 19. Rfe1 {[%emt 0:00:17]} Qd8 {[%emt 0:08:02]} 20. Ng4 {[%emt 0:10:12]} Bc4 {[%emt 0:06:56]} 21. b3 {[%emt 0:02:49]} Bd3 {[%emt 0:03:13]} 22. Rxc7 {[%emt 0:04:01]} Qxc7 {[%emt 0:00:09]} 23. Ne5 Qc3 {[%emt 0:04:59]} 24. Qxc3 {[%emt 0:12:07]} Rxc3 {[%emt 0:00:02]} 25. Nxd3 {[%emt 0:01:20]} exd3 {[%emt 0:00:17]} 26. Rd1 {[%emt 0:00:15]} Kf8 {[%emt 0:01:49]} 27. Rd2 {[%emt 0:02:07]} Rc2 {[%emt 0:11:56]} 28. Rxd3 {[%emt 0:00:07]} Rxa2 {[%emt 0:00:31]} 29. Rc3 {[%emt 0:00:06]} g6 {[%emt 0:01:12]} 30. h3 {[%emt 0:03:13]} Rb2 {[%emt 0:01:31]} 31. Kf1 {[%emt 0:00:17]} b5 {[%emt 0:01:46]} 32. Ke1 {[%emt 0:00:18]} b4 {[%emt 0:00:17]} 33. Rd3 {[%emt 0:00:16]} Ke7 {[%emt 0:00:41]} 34. e4 {[%emt 0:01:04]} a5 {[%emt 0:00:45]} 35. Rf3 {[%emt 0:02:58]} Kd6 {[%emt 0:02:51]} 36. Re3 {[%emt 0:00:08]} Rc2 {[%emt 0:02:14]} 37. Rf3 {[%emt 0:02:01]} Kc6 {[%emt 0:01:24]} 38. Rd3 {[%emt 0:00:19]} Rb2 {[%emt 0:01:01]} 39. Kf1 {[%emt 0:01:00]} Kd6 {[%emt 0:01:54]} 40. Ke1 {[%emt 0:00:06]} Ra2 {[%emt 0:00:58]} 41. d5 {[%emt 0:14:48]} exd5 {[%emt 0:03:52]} 42. Rxd5+ {[%emt 0:00:32]} Kc6 {[%emt 0:01:26]} 43. Kd1 {[%emt 0:00:18]} Rf2 {[%emt 0:02:06]} 44. Rxa5 {[%emt 0:01:36]} Rxf4 {[%emt 0:00:02]} 45. Ra7 {[%emt 0:00:16]} Kc5 {[%emt 0:03:50]} 46. Rd7 {[%emt 0:00:20]} Rf3 {[%emt 0:02:43]} 47. Kc2 {[%emt 0:01:46]} Rc3+ {[%emt 0:00:47]} 48. Kb2 {[%emt 0:00:29]} Rxh3 {[%emt 0:00:06]} 49. Rc7+ {[%emt 0:00:34]} Kd6 {[%emt 0:01:14]} 50. Rxf7 {[%emt 0:00:14]} Rh2+ {[%emt 0:00:38]} 51. Kc1 {[%emt 0:01:29]} Ke5 {[%emt 0:01:44]} 52. Rb7 {[%emt 0:01:03]} Kf4 {[%emt 0:01:02]} 53. Rxb4 {[%emt 0:06:08]} Kxg5 {[%emt 0:00:10]} 54. Rb8 {[%emt 0:00:03]} Re2 {[%emt 0:04:03]} 55. b4 {[%emt 0:00:24]} Rxe4 {[%emt 0:00:10]} 56. b5 {[%emt 0:00:03]} Rd4 {[%emt 0:04:14]} 57. b6 {[%emt 0:00:08]} h5 {[%emt 0:00:47]} 58. Rc8 {[%emt 0:03:25]} Rb4 {[%emt 0:01:15]} 59. Rc5+ {[%emt 0:00:04]} Kh6 {[%emt 0:02:21]} 60. Rc6 {[%emt 0:00:35]} h4 {[%emt 0:00:07]} 61. Kd2 {[%emt 0:01:34]} h3 {[%emt 0:00:26]} 62. Ke3 {[%emt 0:00:27]} Rb1 {[%emt 0:01:44]} 63. b7 {[%emt 0:03:12]} Rxb7 {[%emt 0:01:21]} 64. Kf2 {[%emt 0:00:48]} Rb3 {[%emt 0:01:36]} 65. Kg1 {[%emt 0:02:30]} Kh5 {[%emt 0:00:12]} 66. Kh2 {[%emt 0:00:41]} g5 {[%emt 0:00:10]} 67. Rc8 {[%emt 0:02:21]} Kh4 {[%emt 0:00:10]} 68. Rh8+ {[%emt 0:00:09]} Kg4 {[%emt 0:00:04]} 69. Ra8 {[%emt 0:00:06]} Rb2+ {[%emt 0:00:23]} 70. Kh1 {[%emt 0:00:09]} Kh4 {[%emt 0:00:22]} 71. Ra4+ {[%emt 0:00:27]} g4 {[%emt 0:00:05]} 72. Rc4 {[%emt 0:00:03]} Kg3 {[%emt 0:04:13]} 73. Rc3+ {[%emt 0:00:11]} Kh4 {[%emt 0:01:08]} 74. Rc4 {[%emt 0:00:07]} Re2 {[%emt 0:00:10]} 75. Ra4 {[%emt 0:01:00]} Kg3 {[%emt 0:00:15]} 76. Ra3+ {[%emt 0:00:04]} Kf4 {[%emt 0:01:51]} 77. Ra8 {[%emt 0:02:42]} Kf3 {[%emt 0:00:59]} 78. Ra3+ {[%emt 0:00:11]} Re3 {[%emt 0:00:07]} 79. Ra1 {[%emt 0:00:16]} Kf2 {[%emt 0:02:47]} 80. Kh2 {[%emt 0:00:29]} Re2 {[%emt 0:01:01]} 81. Ra3 {[%emt 0:00:21]} Re3 {[%emt 0:01:05]} 82. Ra1 {[%emt 0:01:03]} Re8 {[%emt 0:00:56]} 83. Ra2+ {[%emt 0:00:27]} Kf3 {[%emt 0:00:07]} 84. Ra3+ {[%emt 0:00:44]} Re3 {[%emt 0:00:06]} 85. Ra1 {[%emt 0:00:06]} Re2+ {[%emt 0:00:05]} 86. Kh1 {[%emt 0:00:04]} g3 {[%emt 0:00:53]} 87. Rb1 {[%emt 0:00:13]} Rf2 {[%emt 0:01:23]} 88. Kg1 {[%emt 0:01:29]} Kg4 {[%emt 0:00:26]} 89. Ra1 {[%emt 0:00:13]} h2+ {[%emt 0:00:15]} 0-1

[Event "WJCC U20 Girls 2019"]
[Site "New Delhi"]
[Date "2019.10.24"]
[Round "10.8"]
[White "Chitlange Sakshi"]
[Black "Song, Yuxin"]
[Result "0-1"]
[ECO "D30"]
[WhiteElo "2175"]
[BlackElo "2292"]
[Annotator "NA"]
[PlyCount "90"]
[EventDate "2019.10.15"]
[EventType "swiss"]
[EventCountry "IND"]
[SourceTitle "playchess.com"]
[Source "ChessBase"]
[SourceQuality "1"]
[TimeControl "40/5400+30:1800+30"]

1. d4 {[%emt 0:00:00]} d5 {[%emt 0:00:00]} 2. c4 {[%emt 0:00:02]} e6 {[%emt 0:00:00]} 3. Nf3 {[%emt 0:00:24]} a6 {[%emt 0:00:00]} 4. Nc3 {[%emt 0:08:05]} dxc4 {[%emt 0:00:01]} 5. e3 {[%emt 0:01:50]} b5 {[%emt 0:00:53]} 6. a4 {[%emt 0:00:51]} b4 {[%emt 0:00:06]} 7. Nb1 {[%emt 0:01:03]} c5 {[%emt 0:00:07]} 8. Bxc4 {[%emt 0:01:42]} Bb7 {[%emt 0:00:09]} 9. O-O {[%emt 0:02:36]} Nf6 {[%emt 0:00:07]} 10. Qe2 {[%emt 0:04:02]} Nbd7 {[%emt 0:00:32]} 11. a5 {[%emt 0:06:54]} Be7 {[%emt 0:13:49]} 12. Nbd2 {[%emt 0:02:11]} cxd4 {[%emt 0:01:03]} 13. Nxd4 {[%emt 0:02:05]} Nc5 {[%emt 0:05:17]} 14. N2b3 {[%emt 0:01:55]} O-O {[%emt 0:06:09]} 15. f3 {[%emt 0:17:41]} Nxb3 {[%emt 0:03:07]} 16. Nxb3 {[%emt 0:01:22]} Bd5 {[%emt 0:13:51]} 17. e4 {[%emt 0:02:18]} Bxc4 {[%emt 0:00:21]} 18. Qxc4 {[%emt 0:00:01]} Qc8 {[%emt 0:00:15]} 19. Qe2 {[%emt 0:01:26]} Nd7 {[%emt 0:00:16]} 20. Be3 {[%emt 0:01:22]} Qb7 {[%emt 0:03:05]} 21. Rac1 {[%emt 0:09:09]} Rac8 {[%emt 0:02:00]} 22. Kh1 {[%emt 0:03:10]} h6 {[%emt 0:04:06]} 23. Bd4 {[%emt 0:04:30]} Bg5 {[%emt 0:14:46]} 24. Be3 {[%emt 0:01:03]} Be7 {[%emt 0:00:49]} 25. Rfd1 {[%emt 0:01:06]} Rxc1 {[%emt 0:04:26]} 26. Rxc1 {[%emt 0:00:02]} Rc8 {[%emt 0:00:09]} 27. Qd1 {[%emt 0:11:04]} Rxc1 {[%emt 0:03:21]} 28. Qxc1 {[%emt 0:00:01]} Bd6 {[%emt 0:00:24]} 29. Qd1 {[%emt 0:06:20]} Qc6 {[%emt 0:02:32]} 30. g3 {[%emt 0:03:42]} Ne5 {[%emt 0:03:55]} 31. Bf4 {[%emt 0:00:18]} g5 {[%emt 0:00:38]} 32. Bxe5 {[%emt 0:02:09]} Bxe5 {[%emt 0:00:02]} 33. Qe2 {[%emt 0:01:17]} Qa4 {[%emt 0:01:04]} 34. Nc5 {[%emt 0:02:07]} Qxa5 {[%emt 0:00:56]} 35. Nxa6 {[%emt 0:01:32]} Bxb2 {[%emt 0:00:01]} 36. Kg2 {[%emt 0:00:37]} Bd4 {[%emt 0:01:14]} 37. Qc4 {[%emt 0:00:56]} b3 {[%emt 0:00:16]} 38. Qxd4 {[%emt 0:01:08]} Qa2+ {[%emt 0:00:01]} 39. Kh3 {[%emt 0:00:13]} b2 {[%emt 0:06:10]} 40. Qd8+ {[%emt 0:00:37]} Kg7 {[%emt 0:00:01]} 41. Nc7 {[%emt 0:13:15]} b1=Q {[%emt 0:00:26]} 42. Ne8+ {[%emt 0:01:20]} Kh7 {[%emt 0:00:08]} 43. Qf6 {[%emt 0:11:44]} Qf1+ {[%emt 0:00:11]} 44. Kg4 {[%emt 0:00:02]} h5+ {[%emt 0:00:09]} 45. Kxg5 {[%emt 0:00:21]} Qb5+ {[%emt 0:00:08]} 0-1

[Event "WJCC U20 Girls 2019"]
[Site "New Delhi"]
[Date "2019.10.24"]
[Round "10.9"]
[White "Altantuya, Boldbaatar"]
[Black "Aakanksha Hagawane"]
[Result "0-1"]
[ECO "D01"]
[WhiteElo "2277"]
[BlackElo "2181"]
[Annotator "NA"]
[PlyCount "128"]
[EventDate "2019.10.15"]
[EventType "swiss"]
[EventCountry "IND"]
[SourceTitle "playchess.com"]
[Source "ChessBase"]
[SourceQuality "1"]
[TimeControl "40/5400+30:1800+30"]

1. d4 Nf6 2. Bg5 d5 3. Nc3 Bf5 4. Nf3 Nbd7 5. e3 g6 6. Qd2 Bg7 7. O-O-O c6 8. h3 b5 9. Ne5 $2 {[#]} (9. g4 $11 {and White is okay.} Ne4 10. Qe1 Nxc3 11. Qxc3) 9... b4 $19 10. Na4 Ne4 11. Nxc6 Nxd2 12. Nxd8 Ne4 13. Nc6 Nxg5 14. Nxb4 Be6 15. Nc3 Nb6 16. Bb5+ Kf8 17. Bc6 Rc8 18. Bb7 Rxc3 19. bxc3 Ne4 20. Rdf1 Nxc3 21. Ba6 Bd7 22. Kd2 Ne4+ 23. Ke2 e5 24. dxe5 Bxe5 25. Nd3 Bd6 26. Ra1 Ke7 27. Rhe1 Bc8 28. Bxc8 Rxc8 29. Kf1 Rxc2 30. Re2 Rc3 31. Rd1 Ra3 32. Rc2 Nc3 33. Ra1 Nc4 34. Nc1 Be5 35. Nb3 a5 36. Nd4 Bxd4 37. exd4 Nb5 38. Rd1 Kd6 39. Ke1 Ra4 40. Rd3 Rb4 41. f3 a4 42. Kf2 a3 43. Kg3 Nb2 44. Rdd2 Rxd4 45. Rxd4 Nxd4 46. Rc8 Nc4 47. Rd8+ Ke6 48. Re8+ Kd7 49. Re1 Nc2 50. Re2 Nb4 51. Kf4 f5 52. g4 Nd3+ 53. Kg5 fxg4 54. hxg4 Ndb2 55. Rh2 d4 56. Rxh7+ Ke6 57. f4 d3 58. Kxg6 d2 59. f5+ Kd6 60. Rh1 Ne5+ 61. Kh5 d1=Q 62. Rxd1+ Nxd1 63. g5 Ke7 64. g6 Kf6 0-1